bitfinex-derivatives/quotes_SOLF0:USTF0_20250328
["timestamp","ask_amount","ask_price","bid_price","bid_amount"]
[1743174362098,7.7167,129.65,129.64,20.41871963]
[1743174362701,36.2967,129.65,129.64,20.36]
[1743174362904,57.89672663,129.65,129.56,107.58753028]
[1743174363099,21.59672663,129.61,129.56,107.58753028]
[1743174363307,7.7215,129.57,129.56,107.58753028]
[1743174363606,28.68,129.6,129.56,107.58753028]
[1743174364004,0.05330964,129.59,129.57,0.05090646]
[1743174364407,7.7214,129.58,129.57,0.05090646]
[1743174367512,7.7239,129.53,129.52,1.54416306]
[1743174367812,28.74,129.54,129.46,141.05726237]
[1743174368112,28.74,129.54,129.47,7.7271]
[1743174368504,28.74,129.54,129.46,127.18833574]
[1743174368709,7.726,129.5,129.49,0.05384682]
[1743174370517,50.35672663,129.51,129.42,2.7316]
[1743174370813,7.7275,129.47,129.42,10.4617]
[1743174371014,28.74,129.48,129.42,2.7316]
[1743174371415,0.0555507,129.46,129.44,0.05777689]
[1743174372610,7.7836507,129.46,129.44,0.05777689]
[1743174373104,0.0555507,129.46,129.44,0.05777689]
[1743174374019,7.7839507,129.46,129.44,0.05777689]
[1743174374214,28.78,129.45,129.44,0.05777689]
[1743174377019,0.0555507,129.46,129.44,0.05777689]
[1743174379120,7.7836507,129.46,129.44,0.05777689]
[1743174379320,0.0555507,129.46,129.44,0.05777689]
[1743174379913,7.7286,129.45,129.44,0.05777689]
[1743174380117,28.7555507,129.46,129.44,0.05777689]
[1743174380721,0.0555507,129.46,129.44,0.05777689]
[1743174381121,7.7836507,129.46,129.44,0.05777689]
[1743174381524,0.0555507,129.46,129.44,0.05777689]
[1743174382916,7.7286,129.45,129.44,0.05777689]
[1743174383421,0.0555507,129.46,129.44,0.05777689]
[1743174384822,7.7837507,129.46,129.44,0.05777689]
[1743174385421,0.0555507,129.46,129.44,0.05777689]
[1743174385822,7.7259,129.5,129.46,7.7276]
[1743174386029,28.84,129.53,129.46,13.542646]
[1743174386526,28.84,129.53,129.48,7.7264]
[1743174386723,254.68,129.54,129.46,13.542646]
[1743174386928,7.7235,129.54,129.5,7.7253]
[1743174387125,0.05289483,129.51,129.5,7.7253]
[1743174387320,28.84,129.55,129.5,13.542646]
[1743174387516,28.84,129.56,129.52,7.724]
[1743174387722,13.542646,129.59,129.52,7.724]
[1743174387723,28.84,129.57,129.52,7.724]
[1743174387917,36.5619,129.57,129.52,7.724]
[1743174388123,28.84,129.57,129.5,13.542646]
[1743174388326,28.86,129.59,129.52,13.542646]
[1743174388522,0.05375644,129.55,129.52,13.60054929]
[1743174388725,7.7205,129.59,129.52,13.60054929]
[1743174389025,7.7205,129.59,129.54,7.7229]
[1743174389221,36.58,129.6,129.52,21.62491143]
[1743174389429,28.9,129.62,129.54,21.62491143]
[1743174389622,28.9,129.62,129.56,7.7217]
[1743174389817,0.05546085,129.59,129.57,0.04904052]
[1743174390018,7.7189,129.62,129.57,0.04904052]
[1743174390224,7.7189,129.62,129.57,7.77024052]
[1743174390528,28.92,129.63,129.57,0.04904052]
[1743174390729,28.92,129.63,129.58,7.7207]
[1743174390923,7.7186,129.62,129.57,0.04904052]
[1743174391123,0.05702472,129.62,129.57,0.04904052]
[1743174392827,21.68193615,129.62,129.57,0.04904052]
[1743174393428,7.7209,129.58,129.57,0.04904052]
[1743174396124,0.04913214,129.59,129.57,0.04904052]
[1743174399135,7.76973214,129.59,129.57,0.04904052]
[1743174399527,0.04913214,129.59,129.57,0.04904052]
[1743174400331,7.76953214,129.59,129.57,0.04904052]
[1743174400532,0.04913214,129.59,129.57,0.04904052]
[1743174401438,7.76973214,129.59,129.57,0.04904052]
[1743174401731,0.04913214,129.59,129.57,0.04904052]
[1743174402640,0.04913214,129.59,129.58,7.7209]
[1743174402835,28.86,129.62,129.57,31.63104052]
[1743174403133,28.86,129.62,129.58,7.7206]
[1743174403338,28.84,129.64,129.58,7.7206]
[1743174403539,7.7194,129.61,129.58,7.7206]
[1743174403842,28.84,129.64,129.57,39.3032]
[1743174404031,0.05917809,129.61,129.58,0.05244665]
[1743174404832,7.7201,129.6,129.58,0.05244665]
[1743174405742,7.77847809,129.61,129.58,0.05244665]
[1743174405941,0.05917809,129.61,129.58,0.05244665]
[1743174406238,7.7201,129.6,129.58,0.05244665]
[1743174406630,0.05917809,129.61,129.58,0.05244665]
[1743174407440,7.77857809,129.61,129.58,0.05244665]
[1743174409541,0.05917809,129.61,129.58,7.77334665]
[1743174409738,0.05917809,129.61,129.58,0.05244665]
[1743174410342,0.05917809,129.61,129.59,7.72]
[1743174411143,14.81094493,129.68,129.59,13.50664493]
[1743174411444,28.72,129.67,129.59,13.50664493]
[1743174411741,28.72,129.67,129.61,13.50664493]
[1743174411938,13.50664493,129.66,129.59,13.50664493]
[1743174412140,13.50664493,129.64,129.58,2.5653]
[1743174412340,28.74,129.63,129.61,0.05800109]
[1743174412733,7.7188,129.62,129.61,0.05800109]
[1743174414546,0.05121837,129.64,129.61,0.05800109]
[1743174414747,0.05121837,129.64,129.61,13.56464602]
[1743174415242,28.7,129.68,129.61,13.56464602]
[1743174415433,28.7,129.68,129.61,13.50664493]
[1743174415639,28.7,129.68,129.62,19.28]
[1743174415836,7.7158,129.67,129.63,7.7175]
[1743174416247,28.7,129.68,129.64,7.7172]
[1743174416248,36.4152,129.68,129.64,7.7172]
[1743174416447,0.05030601,129.66,129.65,13.50664493]
[1743174416648,28.82,129.7,129.65,13.50664493]
[1743174416844,7.7147,129.69,129.63,58.12691042]
[1743174417049,28.82,129.7,129.63,50.40931042]
[1743174417448,7.7146,129.69,129.63,58.12671042]
[1743174417649,7.7146,129.69,129.63,76.80671042]
[1743174417852,0.04938912,129.67,129.65,0.05119977]
[1743174418556,254.68,129.71,129.65,0.05119977]
[1743174418746,283.48,129.71,129.65,0.05119977]
[1743174418953,28.8,129.71,129.65,0.05119977]
[1743174419149,1.4097,129.74,129.65,0.05119977]
[1743174419351,28.78,129.73,129.65,21.58931042]
[1743174419656,7.7145,129.69,129.65,21.58931042]
[1743174419853,7.7145,129.69,129.68,0.05642345]
[1743174422558,7.77224907,129.7,129.68,0.05642345]
[1743174422861,0.05814907,129.7,129.68,0.05642345]
[1743174423054,7.7143,129.69,129.68,0.05642345]
[1743174423955,7.77214907,129.7,129.68,0.05642345]
[1743174424155,0.05814907,129.7,129.68,0.05642345]
[1743174424560,28.8,129.75,129.68,7.77112345]
[1743174424761,28.8,129.75,129.68,7.7147]
[1743174424961,7.7129,129.72,129.68,7.7147]
[1743174425562,7.7129,129.72,129.69,0.05896045]
[1743174425958,7.7132,129.71,129.69,0.05896045]
[1743174426359,28.8,129.75,129.69,50.40827087]
[1743174426560,275.4973,129.83,129.71,21.58931042]
[1743174426762,28.76,129.82,129.73,21.58931042]
[1743174427064,28.76,129.82,129.76,0.05098025]
[1743174427264,269.9322,129.83,129.76,0.05098025]
[1743174427460,7.7094,129.78,129.76,0.05098025]
[1743174427962,7.7096,129.77,129.76,0.05098025]
[1743174429160,28.72,129.79,129.76,0.05098025]
[1743174429460,28.72,129.8,129.76,0.05098025]
[1743174429866,7.7096,129.77,129.76,0.05098025]
[1743174431771,7.7121,129.73,129.7,2.7658]
[1743174431965,28.72,129.74,129.66,31.3048]
[1743174432159,28.72,129.74,129.67,21.58931042]
[1743174432563,28.72,129.74,129.69,7.714]
[1743174432765,7.7123,129.73,129.69,7.714]
[1743174433066,0.05375996,129.73,129.7,7.76698494]
[1743174433373,0.05375996,129.73,129.7,0.05328494]
[1743174434876,0.05375996,129.73,129.71,7.7131]
[1743174435078,0.05375996,129.73,129.7,0.05328494]
[1743174435469,0.05375996,129.73,129.7,7.76668494]
[1743174435876,0.05375996,129.73,129.7,0.05328494]
[1743174436476,0.05375996,129.73,129.7,7.76658494]
[1743174437377,0.05375996,129.73,129.71,7.713]
[1743174437573,27.15441042,129.82,129.71,21.58931042]
[1743174437871,28.68,129.81,129.74,7.711]
[1743174438076,28.68,129.81,129.72,34.0152]
[1743174438672,5.5651,129.82,129.75,0.05596599]
[1743174438877,28.7,129.8,129.75,0.05596599]
[1743174439079,7.7091,129.78,129.75,0.05596599]
[1743174439882,7.7087,129.79,129.75,7.76666599]
[1743174440377,28.7,129.8,129.75,0.05596599]
[1743174440970,36.4081,129.8,129.76,7.7098]
[1743174441680,28.7,129.8,129.75,7.76646599]
[1743174442176,7.7087,129.79,129.75,7.76646599]
[1743174442479,7.7087,129.79,129.76,7.7101]
[1743174443176,7.7092,129.78,129.75,21.23579221]
[1743174443480,28.7,129.81,129.75,13.52529221]
[1743174443775,7.7102,129.76,129.75,0.05596599]
[1743174444579,7.7132,129.71,129.68,18.64702622]
[1743174445081,42.22932622,129.74,129.67,85.54623574]
[1743174445277,13.46932622,129.72,129.67,85.54623574]
[1743174445474,28.76,129.71,129.67,85.54623574]
[1743174445779,28.76,129.71,129.68,0.05274677]
[1743174445780,7.7142,129.7,129.68,0.05274677]
[1743174446080,28.81096488,129.71,129.68,0.05274677]
[1743174446275,7.7143,129.69,129.68,0.05274677]
[1743174447480,7.7168,129.65,129.63,18.68]
[1743174447678,28.82,129.68,129.63,18.68]
[1743174448278,7.7173,129.64,129.63,18.68]
[1743174450880,7.7179,129.63,129.62,0.05383545]
[1743174451287,28.87400526,129.65,129.56,85.54623574]
[1743174451481,7.7182,129.63,129.56,85.54623574]
[1743174451682,28.82,129.62,129.56,85.54623574]
[1743174452185,28.82,129.62,129.56,107.13399137]
[1743174452486,28.82,129.62,129.58,21.63926193]
[1743174452685,7.7175,129.64,129.58,21.63926193]
[1743174452891,28.8,129.65,129.57,28.8]
[1743174453086,28.8,129.65,129.56,85.54623574]
[1743174453488,0.05412242,129.62,129.59,0.0565424]
[1743174453790,28.91412242,129.62,129.59,0.0565424]
[1743174454584,36.63322242,129.62,129.59,0.0565424]
[1743174454790,28.91412242,129.62,129.59,0.0565424]
[1743174454987,7.7195,129.61,129.59,0.0565424]
[1743174455195,28.91412242,129.62,129.59,0.0565424]
[1743174455690,7.7196,129.61,129.59,0.0565424]
[1743174456091,28.91412242,129.62,129.59,0.0565424]
[1743174456293,0.05412242,129.62,129.59,0.0565424]
[1743174456782,0.05412242,129.62,129.59,21.64429803]
[1743174457091,28.9,129.68,129.61,21.58775563]
[1743174457298,7.7169,129.65,129.61,21.58775563]
[1743174457589,28.9,129.68,129.61,21.58775563]
[1743174457795,7.7161,129.67,129.61,21.58775563]
[1743174458095,0.0509817,129.65,129.63,0.05332038]
[1743174459986,0.0509817,129.65,129.63,50.56107601]
[1743174460195,0.0509817,129.65,129.64,7.7173]
[1743174460791,0.0509817,129.65,129.63,58.27877601]
[1743174460996,0.0509817,129.65,129.63,50.56107601]
[1743174462198,0.0509817,129.65,129.64,7.7173]
[1743174462591,0.0509817,129.65,129.63,50.56107601]
[1743174462792,0.0509817,129.65,129.63,28.97332038]
[1743174463399,0.0509817,129.65,129.63,0.05332038]
[1743174464294,0.0509817,129.65,129.63,7.77112038]
[1743174464599,0.0509817,129.65,129.63,0.05332038]
[1743174465503,7.7173,129.64,129.63,0.05332038]
[1743174466405,7.7679817,129.65,129.63,0.05332038]
[1743174468800,7.7173,129.64,129.63,0.05332038]
[1743174470307,7.7679817,129.65,129.63,0.05332038]
[1743174470606,0.0509817,129.65,129.63,0.05332038]
[1743174470909,7.7173,129.64,129.63,0.05332038]
[1743174471599,7.7679817,129.65,129.63,0.05332038]
[1743174471906,0.0509817,129.65,129.63,0.05332038]
[1743174472207,7.7173,129.64,129.63,0.05332038]
[1743174472898,0.0509817,129.65,129.63,0.05332038]
[1743174474513,7.7173,129.64,129.63,0.05332038]
[1743174481423,0.0509817,129.65,129.63,0.05332038]
[1743174482411,7.7173,129.64,129.63,0.05332038]
[1743174483716,7.7173,129.64,129.63,2.038e-05]
[1743174491010,21.2195112,129.64,129.63,2.038e-05]
[1743174492213,7.7203,129.59,129.58,26.41]
[1743174492612,7.7203,129.59,129.54,13.5022112]
[1743174492810,4.7071,129.63,129.54,13.5022112]
[1743174493215,4.7071,129.63,129.54,21.2252112]
[1743174493417,7.7204,129.59,129.57,0.04906615]
[1743174494918,0.05753494,129.6,129.57,0.04906615]
[1743174495317,0.05753494,129.6,129.57,2.49296615]
[1743174496121,7.77763494,129.6,129.57,2.49296615]
[1743174496520,0.05753494,129.6,129.57,2.49296615]
[1743174496721,7.7206,129.59,129.57,2.49296615]
[1743174498225,7.7209,129.58,129.57,2.49296615]
[1743174499024,7.7206,129.59,129.57,2.49296615]
[1743174499223,0.05753494,129.6,129.57,2.49296615]
[1743174500222,7.7207,129.59,129.57,2.49296615]
[1743174500422,0.05753494,129.6,129.57,2.49296615]
[1743174500620,7.7209,129.58,129.57,0.04906615]
[1743174501329,7.7233,129.54,129.53,85.54623574]
[1743174501629,7.723,129.55,129.53,85.54623574]
[1743174501817,13.5022112,129.6,129.53,85.54623574]
[1743174502420,0.05120293,129.58,129.55,0.05787306]
[1743174503529,7.77240293,129.58,129.55,0.05787306]
[1743174504128,0.05120293,129.58,129.55,0.05787306]
[1743174504830,0.05120293,129.58,129.55,13.56008426]
[1743174505024,13.5022112,129.66,129.57,13.5022112]
[1743174505427,13.5022112,129.66,129.57,32.7922112]
[1743174505629,13.5022112,129.64,129.57,19.29]
[1743174505829,7.7204,129.59,129.57,19.29]
[1743174506026,13.5022112,129.64,129.57,43.26]
[1743174506223,0.04949103,129.59,129.57,43.31638777]
[1743174506427,0.04954885,129.59,129.57,43.31638777]
[1743174506932,7.7209,129.58,129.57,43.31638777]
[1743174507625,7.77014885,129.59,129.57,43.31638777]
[1743174507827,0.04954885,129.59,129.57,43.31638777]
[1743174509132,7.7209,129.58,129.57,43.31638777]
[1743174512031,7.7221,129.56,129.55,16.21]
[1743174514633,7.7219,129.57,129.55,16.21]
[1743174514824,0.04954885,129.59,129.55,16.21]
[1743174517234,7.7212,129.58,129.55,16.21]
[1743174518027,0.04954885,129.59,129.55,16.21]
[1743174518826,7.7221,129.56,129.55,16.21]
[1743174520538,7.7227,129.55,129.54,0.04974996]
[1743174525537,7.7236,129.54,129.51,2.6126]
[1743174525736,0.05550729,129.56,129.51,2.6126]
[1743174526133,7.7239,129.53,129.51,2.6126]
[1743174526442,13.5022112,129.58,129.51,2.6126]
[1743174526737,0.05822265,129.56,129.53,0.05602997]
[1743174526927,13.56043385,129.56,129.53,0.05602997]
[1743174527329,7.7233,129.54,129.53,0.05602997]
[1743174533638,0.05822265,129.56,129.53,0.05602997]
[1743174533837,0.05822265,129.56,129.54,21.2255112]
[1743174534235,0.05822265,129.56,129.54,13.5022112]
[1743174534443,0.05822265,129.56,129.54,21.2252112]
[1743174534843,0.05822265,129.56,129.54,13.5022112]
[1743174535045,0.05822265,129.56,129.55,7.7227]
[1743174535244,7.7206,129.59,129.54,13.5022112]
[1743174535436,7.7206,129.59,129.56,13.5022112]
[1743174535643,7.7206,129.59,129.56,21.2240112]
[1743174535836,20.6163,129.64,129.56,13.5022112]
[1743174536239,20.6163,129.64,129.56,21.2241112]
[1743174536436,0.05922705,129.61,129.59,0.05005068]
[1743174537152,7.7197,129.6,129.59,0.05005068]
[1743174540547,7.7209,129.58,129.57,40.41]
[1743174542149,0.05922705,129.61,129.57,40.41]
[1743174542544,7.7202,129.6,129.57,40.41]
[1743174542751,0.05922705,129.61,129.57,40.41]
[1743174543154,7.7201,129.6,129.57,40.41]
[1743174544049,7.77872705,129.61,129.57,40.41]
[1743174544252,7.77872705,129.61,129.57,48.1314]
[1743174545355,0.05922705,129.61,129.57,40.41]
[1743174545652,0.05922705,129.61,129.58,13.5022112]
[1743174545953,0.05922705,129.61,129.58,21.2228112]
[1743174546150,0.05922705,129.61,129.58,13.5022112]
[1743174546352,7.7181,129.63,129.6,13.5022112]
[1743174546549,15.8740112,129.69,129.6,13.5022112]
[1743174546861,7.7176,129.64,129.6,21.2216112]
[1743174547159,15.8740112,129.69,129.6,21.2216112]
[1743174547452,2.5125,129.7,129.63,0.05560403]
[1743174547453,0.05519882,129.66,129.63,0.05560403]
[1743174548454,16.0147112,129.73,129.64,13.5022112]
[1743174548652,13.5022112,129.73,129.65,2.5193]
[1743174548853,13.5022112,129.75,129.66,13.5022112]
[1743174549054,7.7134,129.71,129.66,23.7964112]
[1743174549250,13.5022112,129.75,129.66,16.0806112]
[1743174549657,7.7141,129.7,129.69,0.05318371]
[1743174549859,13.5022112,129.71,129.65,2.5193]
[1743174550057,7.7143,129.69,129.68,0.05882953]
[1743174550257,7.77344932,129.69,129.68,0.05882953]
[1743174551363,7.7169,129.65,129.61,18.5999112]
[1743174552459,0.0553003,129.64,129.62,0.0556386]
[1743174552763,0.04977202,129.64,129.62,0.0556386]
[1743174552958,7.76737202,129.64,129.62,0.0556386]
[1743174554465,7.7179,129.63,129.62,0.0556386]
[1743174556563,5.1818,129.7,129.62,0.0556386]
[1743174556770,5.1818,129.7,129.63,13.5022112]
[1743174557270,7.7167,129.65,129.61,7.7187]
[1743174557570,13.5022112,129.69,129.6,13.5022112]
[1743174557768,0.0498324,129.64,129.62,0.05468872]
[1743174557956,13.5022112,129.69,129.62,0.05468872]
[1743174558162,0.0580761,129.64,129.62,7.77318872]
[1743174558469,0.05210795,129.64,129.6,13.5022112]
[1743174558667,0.05210795,129.64,129.62,13.55297838]
[1743174559670,0.05210795,129.64,129.62,21.27107838]
[1743174560364,0.05210795,129.64,129.62,13.55297838]
[1743174560566,0.05210795,129.64,129.62,16.10667838]
[1743174561764,0.05210795,129.64,129.62,23.82487838]
[1743174561966,0.05210795,129.64,129.62,16.10667838]
[1743174562975,0.05210795,129.64,129.63,7.7179]
[1743174563271,0.05210795,129.64,129.62,16.10667838]
[1743174563671,0.05210795,129.64,129.62,23.82477838]
[1743174566375,0.05210795,129.64,129.62,0.05076718]
[1743174566875,7.7179,129.63,129.62,0.05076718]
[1743174567080,13.55431915,129.64,129.56,4.9318]
[1743174567280,13.5022112,129.62,129.56,4.9318]
[1743174567779,13.5022112,129.62,129.55,299.79226129]
[1743174568185,7.7206,129.59,129.55,307.51456129]
[1743174568382,7.7206,129.59,129.57,0.05342134]
[1743174569283,7.77105801,129.6,129.57,0.05342134]
[1743174569671,7.77095801,129.6,129.57,0.05342134]
[1743174569882,0.05105801,129.6,129.57,0.05342134]
[1743174570278,7.77085801,129.6,129.57,0.05342134]
[1743174570476,0.05105801,129.6,129.57,0.05342134]
[1743174571585,0.05105801,129.6,129.57,13.55563254]
[1743174571884,0.05105801,129.6,129.57,0.05342134]
[1743174572382,7.7207,129.59,129.57,0.05342134]
[1743174573588,0.05105801,129.6,129.57,0.05342134]
[1743174573589,7.7209,129.58,129.57,0.05342134]
[1743174573980,7.7206,129.59,129.57,0.05342134]
[1743174574379,0.05105801,129.6,129.57,0.05342134]
[1743174574575,7.7208,129.59,129.57,0.05342134]
[1743174575084,7.7209,129.58,129.57,0.05342134]
[1743174575976,7.7203,129.59,129.57,0.05342134]
[1743174576179,0.05105801,129.6,129.57,0.05342134]
[1743174576582,7.7203,129.59,129.57,0.05342134]
[1743174577091,7.77115801,129.6,129.57,0.05342134]
[1743174577292,0.05105801,129.6,129.57,0.05342134]
[1743174578384,7.7209,129.58,129.57,0.05342134]
[1743174582686,21.2231112,129.58,129.57,0.05342134]
[1743174582883,21.2231112,129.58,129.57,2.134e-05]
[1743174583087,7.7245,129.52,129.51,214.0409]
[1743174583287,13.5022112,129.55,129.48,85.75136129]
[1743174583694,13.5022112,129.55,129.46,324.082269]
[1743174583897,7.7254,129.51,129.47,7.7272]
[1743174584094,7.7254,129.51,129.49,0.05001684]
[1743174584992,7.77692161,129.52,129.49,0.05001684]
[1743174585294,0.05212161,129.52,129.49,0.05001684]
[1743174585496,7.7253,129.51,129.49,0.05001684]
[1743174585997,0.05212161,129.52,129.49,0.05001684]
[1743174586394,7.77692161,129.52,129.49,0.05001684]
[1743174587398,7.7251,129.51,129.49,0.05001684]
[1743174587895,0.05212161,129.52,129.49,0.05001684]
[1743174588100,7.7251,129.51,129.49,0.05001684]
[1743174588798,7.7257,129.5,129.49,0.05001684]
[1743174589986,7.7253,129.51,129.49,0.05001684]
[1743174590186,0.05212161,129.52,129.49,0.05001684]
[1743174591093,7.7254,129.51,129.49,0.05001684]
[1743174591298,0.05212161,129.52,129.49,0.05001684]
[1743174591498,7.77692161,129.52,129.49,0.05001684]
[1743174591704,0.05212161,129.52,129.49,7.77581684]
[1743174591896,0.05212161,129.52,129.49,13.55222804]
[1743174592097,0.05212161,129.52,129.5,7.7253]
[1743174593898,0.05212161,129.52,129.49,13.55222804]
[1743174594505,0.05212161,129.52,129.5,2.4354]
[1743174594700,0.05212161,129.52,129.5,4.9386]
[1743174595998,7.77712161,129.52,129.5,4.9386]
[1743174597108,0.05212161,129.52,129.5,12.6643]
[1743174597801,0.05212161,129.52,129.51,7.7251]
[1743174598003,31.4438112,129.6,129.5,4.9386]
[1743174598304,7.724,129.53,129.5,4.9386]
[1743174598606,15.4408,129.59,129.5,4.9386]
[1743174598806,7.7244,129.53,129.5,4.9386]
[1743174599000,7.78082901,129.53,129.5,12.72258601]
[1743174599202,0.05642901,129.53,129.5,12.72258601]
[1743174599507,7.7247,129.52,129.5,12.72258601]
[1743174599710,7.7247,129.52,129.5,4.99718601]
[1743174600702,7.78062901,129.53,129.5,12.72248601]
[1743174600905,7.78062901,129.53,129.5,4.99718601]
[1743174601412,7.78062901,129.53,129.5,12.72248601]
[1743174601601,0.05642901,129.53,129.5,4.99718601]
[1743174601801,0.05642901,129.53,129.52,7.7245]
[1743174601998,0.05642901,129.53,129.5,4.99718601]
[1743174602407,0.05642901,129.53,129.51,7.7246]
[1743174602805,0.05642901,129.53,129.52,7.7245]
[1743174603711,13.5022112,129.59,129.54,7.7233]
[1743174603912,7.7223,129.56,129.54,7.7233]
[1743174604808,2.5015,129.6,129.51,13.5022112]
[1743174605107,0.04961944,129.56,129.54,0.05774624]
[1743174606704,0.04961944,129.56,129.54,7.78094624]
[1743174607111,7.77181944,129.56,129.54,0.05774624]
[1743174607506,0.04961944,129.56,129.54,0.05774624]
[1743174607706,7.7227,129.55,129.54,0.05774624]
[1743174609513,7.7227,129.55,129.5,216.4763]
[1743174609514,7.7251,129.51,129.5,214.0409]
[1743174609714,7.7251,129.51,129.48,7.7266]
[1743174610103,15.4379,129.62,129.49,13.5022112]
[1743174610308,28.9401112,129.62,129.53,13.5022112]
[1743174610503,16.0037112,129.6,129.51,13.5022112]
[1743174610815,13.55653716,129.58,129.55,0.05865446]
[1743174611213,7.7221,129.56,129.55,0.05865446]
[1743174611419,13.55653716,129.58,129.55,0.05865446]
[1743174611613,7.77552596,129.58,129.55,0.05865446]
[1743174611817,0.05432596,129.58,129.55,0.05865446]
[1743174612011,0.05432596,129.58,129.55,13.56086566]
[1743174612316,13.5022112,129.68,129.57,13.5022112]
[1743174612507,15.9893112,129.7,129.61,13.5022112]
[1743174612705,13.5022112,129.66,129.58,2.4418]
[1743174612904,13.5022112,129.68,129.59,13.5022112]
[1743174613213,128.57385035,129.72,129.67,13.5022112]
[1743174613414,128.57385035,129.73,129.65,13.5022112]
[1743174613710,128.57385035,129.73,129.63,13.5022112]
[1743174613711,13.55398262,129.71,129.63,13.5022112]
[1743174613911,13.5022112,129.69,129.68,0.05879997]
[1743174614311,0.05209815,129.7,129.61,13.5022112]
[1743174614515,0.05209815,129.7,129.67,0.05580967]
[1743174614718,13.5022112,129.71,129.61,13.5022112]
[1743174614919,0.05726009,129.67,129.61,13.5022112]
[1743174615109,0.05726009,129.67,129.65,0.0520305]
[1743174615316,128.57385035,129.73,129.66,13.5022112]
[1743174615513,128.57385035,129.73,129.68,13.5022112]
[1743174615713,13.5022112,129.79,129.7,13.5022112]
[1743174616018,15.8891112,129.81,129.72,13.5022112]
[1743174616213,2.3869,129.81,129.72,13.5022112]
[1743174616514,13.5022112,129.79,129.7,227.5431112]
[1743174616720,7.7106,129.76,129.75,0.05590852]
[1743174616923,13.5022112,129.77,129.66,230.0938112]
[1743174617213,7.7133,129.71,129.66,216.5916]
[1743174617521,21.58014958,129.76,129.66,216.5916]
[1743174617818,21.58014958,129.76,129.66,238.17174958]
[1743174618121,0.05063741,129.72,129.7,0.0572038]
[1743174618418,21.58014958,129.78,129.68,21.58014958]
[1743174618615,2.3869,129.81,129.66,216.5916]
[1743174618616,0.05422459,129.72,129.7,0.05122861]
[1743174618808,7.7132,129.71,129.7,0.05122861]
[1743174619815,0.05633418,129.72,129.7,0.05122861]
[1743174620816,7.7104,129.76,129.7,21.63137819]
[1743174621026,2.3869,129.81,129.7,21.63137819]
[1743174621225,21.58014958,129.8,129.68,21.58014958]
[1743174621618,21.58014958,129.8,129.69,7.7143]
[1743174621820,21.58014958,129.8,129.68,21.58014958]
[1743174622018,7.7114,129.74,129.73,0.05066369]
[1743174622214,0.05123269,129.76,129.68,21.58014958]
[1743174622420,0.05123269,129.76,129.72,0.05429691]
[1743174622623,21.58014958,129.78,129.72,0.05429691]
[1743174622817,7.76825456,129.73,129.72,0.05429691]
[1743174623018,21.58014958,129.8,129.72,0.05429691]
[1743174623215,0.04906286,129.76,129.68,21.58014958]
[1743174623420,7.7123,129.73,129.68,29.29464958]
[1743174623721,0.05606348,129.73,129.71,0.0588654]
[1743174623922,7.7129,129.72,129.71,0.0588654]
[1743174624229,0.05606348,129.73,129.71,0.0588654]
[1743174624429,2.3869,129.81,129.71,0.0588654]
[1743174624618,21.58014958,129.84,129.72,21.58014958]
[1743174624823,21.58014958,129.84,129.71,276.0409]
[1743174625024,21.58014958,129.84,129.73,21.58014958]
[1743174625225,21.58014958,129.86,129.75,21.58014958]
[1743174625626,21.58014958,129.86,129.73,21.58014958]
[1743174625627,21.58014958,129.88,129.79,0.05498217]
[1743174626028,21.58014958,129.88,129.77,21.58014958]
[1743174626225,21.58014958,129.88,129.82,0.05888313]
[1743174626532,7.7056,129.84,129.82,0.05888313]
[1743174626719,4.8837,129.89,129.82,0.05888313]
[1743174626926,2.3912,129.89,129.82,0.05888313]
[1743174627125,21.58014958,129.92,129.82,7.76538313]
[1743174627327,21.58014958,129.92,129.82,0.05888313]
[1743174627525,7.7028,129.89,129.85,7.7047]
[1743174627830,791.3240448,130.03,129.87,21.58014958]
[1743174628032,7.7,129.94,129.88,7.7027]
[1743174628223,21.58014958,129.98,129.87,21.58014958]
[1743174628531,21.58014958,129.98,129.9,0.0589081]
[1743174628926,21.58014958,129.98,129.85,235.62104958]
[1743174629127,24.13894958,130.0,129.93,0.05506128]
[1743174629326,24.13894958,130.0,129.89,21.58014958]
[1743174629526,21.58014958,129.98,129.95,0.05217408]
[1743174629726,21.58014958,129.96,129.86,2.6329]
[1743174630334,23.11908463,129.96,129.86,2.6329]
[1743174630530,21.58014958,129.92,129.85,214.0409]
[1743174630927,0.05334619,129.9,129.87,0.05474572]
[1743174632034,7.7031,129.88,129.87,0.05474572]
[1743174633228,7.7063,129.83,129.8,2.5018]
[1743174633437,21.58014958,129.87,129.8,2.5018]